[Event "9. Korbacher Open 2017"]
[Site "Korbach"]
[Date "2017.10.19"]
[Round "1"]
[White "Stahnke, Thorsten"]
[Black "Aardenburg, Piet"]
[Result "1/2-1/2"]
[ECO "D52"]
[WhiteElo "2026"]
[BlackElo "1782"]
[Annotator "NA RC"]
[PlyCount "128"]
[EventDate "2017.??.??"]
[EventType "swiss"]
[EventCountry "GER"]
[SourceTitle "playchess.com"]
[Source "ChessBase"]
[SourceQuality "1"]
[TimeControl "40/5400+30:1800+30"]

{[%evp 11,128,14,32767,12,9,2,0,0,0,0,66,43,58,28,41,0,0,0,8,0,6,-18,-1,-37,0,0,33,23,46,32767,32767,32767,31,32767,32767,32767,32767,34,68,68,162,171,145,85,117,95,106,99,175,136,148,137,208,202,208,160,650,53,742,-448,-440,-1155,-1293,-1379,-80,-1242,-8,-19,0,0,0,0,88,88,79,56,58,57,76,62,93,51,45,33,53,54,53,52,31,6,0,0,5,0,8,12,0,0,0,0,0,8,8,0,0,0,0,8,8,0,0,0,0,0,0,0,0,0,0]} 1. c4 {[%emt 0:00:00]} e6 {[%emt 0:02:16]} 2. Nc3 {[%emt 0:00:09]} d5 {[%emt 0:00:55]} 3. d4 {[%emt 0:01:18]} Nf6 {[%emt 0:00:33]} 4. Bg5 {[%emt 0:00:23]} c6 {[%emt 0:01:21]} 5. e3 {[%emt 0:00:22]} Nbd7 {[%emt 0:00:33]} 6. Nf3 {[%emt 0:01:33]} Qa5 {[%emt 0:05:54]} 7. Bxf6 {[%emt 0:01:44]} Nxf6 {[%emt 0:02:25]} 8. Nd2 {[%emt 0:00:22]} Bb4 {[%emt 0:08:22]} 9. Qc2 {[%emt 0:00:23] LiveBook: 31 Games} O-O {[%emt 0:05:34]} 10. Bd3 {[%emt 0:09:09]} dxc4 {[%emt 0:07:04]} (10... Qc7 $11) 11. Nxc4 {[%emt 0:02:06]} Qh5 {[%emt 0:06:57] D52: Queen's Gambit Declined: Cambridge Springs Variation} 12. a3 {[%emt 0:05:48]} (12. O-O c5 13. Ne4 Nxe4 14. Bxe4 cxd4 15. exd4 Rb8 16. Rad1 Bd7 17. d5 Rfc8 18. Qb3 Bb5 19. Qxb4 Bxc4 20. Rfe1 Bxd5 21. Bxd5 exd5 {½-½ (22) Lagno,K (2507)-Looshnikov,N (2462) Satka 2008}) 12... Be7 {[%emt 0:04:15]} 13. Ne2 {[%emt 0:14:32]} c5 $146 {[%emt 0:03:17]} ({Predecessor:} 13... Qh4 14. Nf4 Nd5 15. g3 Qh6 16. Ne5 Nxf4 17. gxf4 f6 18. Nf3 Qh5 19. Rg1 {1-0 (32) Cedikova,K-Cecil,P Klatovy 1996}) 14. Ng3 {[%emt 0:04:41]} Qh6 {[%emt 0:03:22]} 15. dxc5 {[%emt 0:01:24]} Bxc5 {[%emt 0:00:57]} 16. b4 {[%emt 0:00:28]} Be7 {[%emt 0:00:21]} 17. Na5 {[%emt 0:00:51]} Bd8 {[%emt 0:05:38]} 18. Ne4 {[%emt 0:07:20]} Ne8 {[%emt 0:07:13]} 19. O-O {[%emt 0:01:59]} f5 {[%emt 0:07:41]} 20. Ng3 {[%emt 0:05:15]} Nf6 {[%emt 0:00:22]} 21. Bc4 {[%emt 0:00:57]} Kh8 {[%emt 0:02:12]} 22. Rfd1 {[%emt 0:03:51]} Bc7 {[%emt 0:01:28]} 23. Nf1 {[%emt 0:01:53]} Bb6 {[%emt 0:04:44]} 24. Be2 {[%emt 0:03:39]} e5 {[%emt 0:01:49] [#]} 25. Nc4 $1 {[%emt 0:00:29]} e4 {[%emt 0:01:58]} (25... f4 $16) 26. Nxb6 {[%emt 0:00:41]} axb6 {[%emt 0:00:01]} 27. Rd6 {[%emt 0:01:06]} (27. Qc7 $18 {is more deadly.}) 27... f4 {[%emt 0:06:24]} 28. exf4 {[%emt 0:01:49]} Qxf4 {[%emt 0:00:05]} 29. Qd2 {[%emt 0:05:05]} Qh4 {[%emt 0:02:49]} (29... Qe5 $16 {was worth a try.} 30. Rc1 Qe7) 30. Qe3 {[%emt 0:05:02]} Bf5 {[%emt 0:01:07]} 31. Qxb6 {[%emt 0:01:59]} Ng4 {[%emt 0:01:27] [#]} 32. Bxg4 $1 {[%emt 0:06:11]} Bxg4 {[%emt 0:00:03]} 33. Qe3 {[%emt 0:00:26]} Rf3 $2 {[%emt 0:03:35]} (33... Qe7 $16 34. Rd2 Bd7) 34. Qd4 $2 {[%emt 0:05:17]} (34. gxf3 $18 Bxf3 35. Qc1) 34... Raf8 $2 {[%emt 0:01:58]} (34... e3 $16 35. Nxe3 Qxf2+ 36. Kh1 Raf8) 35. Nd2 $4 {[%emt 0:02:38]} (35. gxf3 $18 Bxf3 36. Qe5) 35... Rd3 {[%emt 0:00:37]} 36. Qb6 {[%emt 0:03:05]} (36. Rf1 $142 Rxd4 37. Rxd4) 36... Rxd6 {[%emt 0:00:17]} 37. Qxd6 {[%emt 0:00:02]} Qxf2+ {[%emt 0:00:13]} 38. Kh1 {[%emt 0:00:01]} Be2 $2 {[%emt 0:01:45]} (38... e3 $19 39. Qxf8+ Qxf8) 39. h3 $1 {[%emt 0:03:45]} e3 {[%emt 0:01:48]} 40. Ne4 {[%emt 0:00:02]} Qf4 {[%emt 0:30:37]} 41. Re1 {[%emt 0:31:25]} Rf6 {[%emt 0:00:00]} (41... Qxd6 $11 {bleibt in der Remisbreite.} 42. Nxd6 Rf1+ 43. Rxf1 Bxf1) 42. Qxf4 {[%emt 0:00:00]} Rxf4 {[%emt 0:00:00]} 43. Ng3 {[%emt 0:00:00]} Bb5 {[%emt 0:00:00]} 44. Rxe3 {[%emt 0:00:00]} g6 {[%emt 0:00:00]} 45. Kg1 {[%emt 0:00:00]} Bc6 {[%emt 0:00:00]} 46. Re5 {[%emt 0:00:00]} Kg7 {[%emt 0:00:00]} 47. Re7+ {[%emt 0:00:00]} (47. Ne2 $5 {[%cal Re2f4]} Kf6 48. Rc5 $16 (48. Nxf4 Kxe5 49. g3 Kd4 $11)) 47... Kg8 {[%emt 0:00:00]} 48. Ne2 {[%emt 0:00:00]} Rc4 {[%emt 0:00:00]} 49. Kf2 {[%emt 0:00:00]} Rc2 {[%emt 0:00:00]} 50. h4 {[%emt 0:00:00]} (50. a4 $5) 50... Ra2 {[%emt 0:00:00]} 51. Re3 {[%emt 0:00:00]} Bb5 {[%emt 0:00:00]} 52. g4 {[%emt 0:00:00]} Bxe2 {[%emt 0:00:00]} 53. Rxe2 {[%emt 0:00:00]} Rxa3 {[%emt 0:00:00]} 54. Re7 {[%emt 0:00:00]} Rh3 {[%emt 0:00:00]} 55. Rxb7 {[%emt 0:00:00]} Rxh4 {[%emt 0:00:00]} 56. Kg3 {[%emt 0:00:00]} Rh1 {[%emt 0:00:00]} 57. Kf4 {[%emt 0:00:35]} h5 {[%emt 0:00:00]} 58. gxh5 {[%emt 0:03:19]} Rxh5 {[%emt 0:00:00]} 59. b5 {[%emt 0:00:32]} Kf8 {[%emt 0:00:00]} 60. b6 {[%emt 0:01:11]} Rb5 {[%emt 0:00:00]} 61. Rb8+ {[%emt 0:00:21]} Kf7 {[%emt 0:00:00]} 62. b7 {[%emt 0:00:17]} Kg7 {[%emt 0:00:17]} 63. Ke4 {[%emt 0:01:32]} g5 {[%emt 0:01:55]} 64. Ke3 $11 {[%emt 0:00:24]} Kh7 {[%emt 0:00:13]} 1/2-1/2

[Event "9. Korbacher Open 2017"]
[Site "Korbach"]
[Date "2017.10.19"]
[Round "1"]
[White "Maiwald, Harald"]
[Black "Koerber, Thomas"]
[Result "1-0"]
[ECO "A06"]
[WhiteElo "2014"]
[BlackElo "1857"]
[Annotator "NA RC"]
[PlyCount "113"]
[EventDate "2017.??.??"]
[EventType "swiss"]
[EventCountry "GER"]
[SourceTitle "playchess.com"]
[Source "ChessBase"]
[SourceQuality "1"]
[TimeControl "40/5400+30:1800+30"]

{[%evp 9,113,28,27,20,20,13,32767,32767,44,31,35,48,50,43,55,40,58,39,101,114,116,100,124,113,245,213,257,231,322,189,186,183,269,253,422,236,328,225,166,181,246,191,402,32767,32767,268,32767,288,455,210,32767,203,230,256,265,297,316,404,646,616,509,495,463,551,612,714,479,626,32767,319,32767,283,459,314,487,310,472,339,360,372,32767,32767,483,32767,32767,638,579,545,1046,0,758,881,716,919,886,1115,837,958,909,1262,703,1497,1202,2227,29972,725]} 1. Nf3 {[%emt 0:00:00]} d5 {[%emt 0:00:49]} 2. g3 {[%emt 0:00:00]} c6 {[%emt 0:00:39]} 3. Bg2 {[%emt 0:00:00]} Nf6 {[%emt 0:00:32]} 4. O-O {[%emt 0:00:08]} g6 {[%emt 0:01:51]} 5. d3 {[%emt 0:05:33]} Bg7 {[%emt 0:00:21]} 6. Nbd2 {[%emt 0:00:04]} O-O {[%emt 0:01:33] LiveBook: 130 Games} 7. e4 {[%emt 0:00:07]} dxe4 {[%emt 0:02:15]} 8. dxe4 {[%emt 0:00:09]} Nfd7 {[%emt 0:00:29] A07: Réti Opening: New York and Capablanca Systems} (8... Na6 9. Qe2 Nc5 10. e5 Nd5 11. Nb3 Nxb3 12. axb3 Bf5 13. Nh4 Be6 14. f4 Qd7 15. Bd2 Bg4 16. Bf3 Bxf3 17. Nxf3 Rfd8 18. Rfd1 Qc7 19. c4 {½-½ (62) Ehlvest,J (2524)-Pourramezanali,A (2509) Guilan 2016}) 9. Qe2 {[%emt 0:03:55]} e5 {[%emt 0:02:20]} 10. Rd1 {[%emt 0:02:32]} Qc7 {[%emt 0:01:47]} 11. b3 $146 {[%emt 0:01:25]} ({Predecessor:} 11. a4 b6 12. Bf1 a5 13. c3 Na6 14. Nc4 Ndc5 15. Qc2 Bg4 16. Be2 {0-1 (27) Tassetti,M (1962)-Levaux,C (2013) France 2006}) 11... Re8 {[%emt 0:00:17]} 12. Ba3 {[%emt 0:01:45]} Nb6 {[%emt 0:01:25]} 13. Nf1 {[%emt 0:03:36]} Bg4 {[%emt 0:00:23]} ({Better is} 13... f6 $14) 14. Bd6 {[%emt 0:03:28]} Qc8 {[%emt 0:01:24]} 15. Ne3 {[%emt 0:04:34]} Bxf3 {[%emt 0:05:29]} 16. Bxf3 {[%emt 0:02:28]} f5 {[%emt 0:06:07]} (16... N8d7 $16 17. Bg4 Qd8) 17. c4 {[%emt 0:08:44]} Qe6 {[%emt 0:03:38]} 18. c5 {[%emt 0:04:09]} Nc8 {[%emt 0:03:25]} 19. b4 {[%emt 0:06:35]} Ne7 {[%emt 0:05:17]} 20. b5 {[%emt 0:06:27]} Kh8 {[%emt 0:04:54]} 21. Rab1 {[%emt 0:00:50]} Nd7 {[%emt 0:04:11]} (21... fxe4 {is a better defense.} 22. Bxe4 Qc8 23. bxc6 bxc6) 22. Bxe7 {[%emt 0:06:57]} Rxe7 {[%emt 0:00:28]} 23. Rd6 {[%emt 0:06:02]} Qf7 {[%emt 0:02:24]} 24. bxc6 {[%emt 0:01:32]} Nxc5 {[%emt 0:00:59]} 25. exf5 {[%emt 0:02:27]} gxf5 $2 {[%emt 0:05:18]} (25... e4) 26. Bd5 {[%emt 0:02:14]} Qf8 {[%emt 0:00:21]} 27. Qc2 {[%emt 0:04:56]} f4 {[%emt 0:02:53]} 28. Qxc5 {[%emt 0:04:21]} fxe3 {[%emt 0:00:08]} 29. Qxe3 {[%emt 0:01:32]} (29. cxb7 $142 Qxf2+ 30. Kh1) 29... bxc6 {[%emt 0:00:52]} 30. Rxc6 {[%emt 0:00:40]} Rd8 {[%emt 0:00:34]} 31. Be4 {[%emt 0:00:30]} Rd4 {[%emt 0:01:59]} 32. Rbc1 {[%emt 0:02:08]} Re8 {[%emt 0:00:32]} 33. Rc7 {[%emt 0:00:30]} Rdd8 {[%emt 0:03:15]} (33... a5 $142 34. R1c6 Red8) 34. Rxa7 {[%emt 0:03:07]} Re7 {[%emt 0:05:05]} 35. Rcc7 {[%emt 0:00:45]} Rxc7 {[%emt 0:01:54]} 36. Rxc7 {[%emt 0:00:02]} Qf6 {[%emt 0:00:35]} (36... Qd6 $142) 37. Kg2 {[%emt 0:01:30]} Qd6 {[%emt 0:00:50]} 38. Qa7 {[%emt 0:01:35]} Qd4 {[%emt 0:01:27]} 39. Qxd4 $2 {[%emt 0:02:28]} (39. Qb7) 39... exd4 {[%emt 0:00:15]} 40. Bd3 {[%emt 0:00:03]} h5 $2 {[%emt 0:30:16]} 41. Rc5 {[%emt 0:30:59]} Kg8 {[%emt 0:01:23]} 42. Rxh5 {[%emt 0:00:22]} Kf7 {[%emt 0:00:07]} (42... Rc8 $142 43. Kf3 Rf8+ 44. Ke2 Re8+ 45. Kd2 Re5) 43. Rb5 {[%emt 0:00:22]} Rc8 {[%emt 0:01:09]} 44. Kf3 {[%emt 0:00:37]} Rc3 {[%emt 0:01:42]} 45. Ke4 {[%emt 0:00:03]} Ra3 {[%emt 0:00:07]} 46. h4 {[%emt 0:00:19]} Kf6 {[%emt 0:00:29]} 47. Rb6+ $2 {[%emt 0:00:26]} Ke7 {[%emt 0:00:18]} 48. Rb7+ {[%emt 0:00:29]} Kf6 {[%emt 0:00:11]} 49. Rb6+ {[%emt 0:02:29]} (49. g4 $18) 49... Ke7 {[%emt 0:00:08]} 50. Ra6 {[%emt 0:00:15]} Rc3 {[%emt 0:01:01]} 51. g4 {[%emt 0:00:31]} Rc5 {[%emt 0:00:23]} 52. f4 {[%emt 0:00:49]} Rc1 {[%emt 0:00:50]} 53. h5 {[%emt 0:01:18]} Re1+ {[%emt 0:00:12]} 54. Kf5 {[%emt 0:00:24]} Re3 {[%emt 0:00:18]} 55. Ra7+ {[%emt 0:00:41]} Kf8 {[%emt 0:00:34]} 56. Bc4 {[%emt 0:00:38]} d3 {[%emt 0:00:56]} 57. Rd7 $18 {[%emt 0:01:58]} 1-0

[Event "9. Korbacher Open 2017"]
[Site "Korbach"]
[Date "2017.10.19"]
[Round "1"]
[White "Lesny, Florian"]
[Black "Boehme, Jonas"]
[Result "1/2-1/2"]
[ECO "B01"]
[WhiteElo "1997"]
[BlackElo "1675"]
[Annotator "NA RC"]
[PlyCount "119"]
[EventDate "2017.??.??"]
[EventType "swiss"]
[EventCountry "GER"]
[SourceTitle "playchess.com"]
[Source "ChessBase"]
[SourceQuality "1"]
[TimeControl "40/5400+30:1800+30"]

{[%evp 11,119,34,61,69,32767,28,38,17,32767,32767,32767,8,35,18,28,-8,0,-4,0,-21,-18,-64,-64,-63,-54,-51,-48,-68,-62,32767,-83,32767,-90,-138,-114,-144,-139,-125,-120,-118,-103,-104,-107,-105,-71,32767,32767,-81,32767,-95,-95,-102,-92,-103,32767,32767,-84,-138,-145,-123,-151,-154,-139,-147,-85,-91,-83,-85,-84,-82,-82,-81,32767,-73,-67,-68,-56,-86,-58,-76,-74,-72,-21,-48,-64,-87,-64,32767,32767,-37,-45,32767,32767,0,-19,-11,0,-15,-14,-11,0,0,0,0,0,0,0,0,0,0]} 1. e4 {[%emt 0:00:00]} d5 {[%emt 0:00:02]} 2. exd5 {[%emt 0:00:00]} Nf6 {[%emt 0:00:02]} 3. d4 {[%emt 0:00:13]} Bg4 {[%emt 0:00:03]} 4. Be2 {[%emt 0:00:29]} Bxe2 {[%emt 0:00:28]} 5. Qxe2 {[%emt 0:01:03]} Qxd5 {[%emt 0:00:35]} 6. Nf3 {[%emt 0:00:38] LiveBook: 173 Partien} Nc6 {[%emt 0:01:05]} 7. c4 {[%emt 0:09:03]} Qe4 {[%emt 0:04:32] B01: Scandinavian Defence} (7... Qf5 8. O-O O-O-O 9. d5 Nb4 10. Nc3 Nd3 11. Rd1 Nc5 12. Qe3 e6 13. b4 Ng4 14. Qg5 Na6 15. Qxf5 exf5 16. a3 Be7 17. Bf4 Bd6 18. Rd4 Bxf4 19. Rxf4 {½-½ (52) Aryan,C (2503)-Kulkarni,R (2344) Caleta 2017}) 8. Qxe4 {[%emt 0:05:50]} Nxe4 {[%emt 0:00:02]} 9. Nbd2 {[%emt 0:10:02]} Nxd2 {[%emt 0:08:37]} 10. Bxd2 {[%emt 0:00:51]} e6 {[%emt 0:00:02]} 11. a3 {[%emt 0:00:49]} g6 $146 {[%emt 0:05:54]} ({Predecessor:} 11... Be7 12. O-O-O Bf6 13. d5 exd5 14. Rhe1+ Ne7 15. cxd5 {0-1 (45) Torres Grajales,R (2056)-Laynez Aspenberg,J (1898) Collado Villalba 2011}) 12. Bc3 {[%emt 0:04:11]} Bg7 {[%emt 0:00:41]} 13. O-O {[%emt 0:03:05]} Rd8 {[%emt 0:02:19]} 14. Rad1 {[%emt 0:00:57]} O-O {[%emt 0:00:34]} 15. b4 {[%emt 0:09:45]} a6 {[%emt 0:01:28]} 16. b5 {[%emt 0:08:12]} axb5 {[%emt 0:00:09]} 17. cxb5 {[%emt 0:00:23]} Ne7 {[%emt 0:00:30]} 18. Bb4 Rfe8 {[%emt 0:00:02]} 19. Bxe7 {[%emt 0:01:03]} Rxe7 {[%emt 0:01:16]} 20. Rd2 {[%emt 0:04:36]} Red7 21. Rfd1 Ra8 {[%emt 0:07:01]} 22. Ra1 {[%emt 0:06:28]} Rd5 {[%emt 0:03:32]} 23. Rb2 {[%emt 0:05:10]} Bxd4 {[%emt 0:01:08]} 24. Nxd4 {[%emt 0:02:17]} Rxd4 {[%emt 0:00:04]} 25. Kf1 {[%emt 0:00:51]} Raa4 {[%emt 0:06:46]} 26. Rc1 {[%emt 0:04:48]} Rac4 {[%emt 0:04:05]} ({Much weaker is} 26... Rxa3 $6 27. Rxc7 b6 28. Rc6 $11) 27. Rbc2 {[%emt 0:03:02]} Rxc2 {[%emt 0:00:05]} 28. Rxc2 {[%emt 0:00:52]} Rd7 {[%emt 0:00:02]} 29. a4 {[%emt 0:01:39]} b6 {[%emt 0:00:29]} 30. Ra2 {[%emt 0:02:06]} Kf8 {[%emt 0:00:35]} 31. a5 {[%emt 0:02:26]} bxa5 {[%emt 0:00:02]} 32. Rxa5 {[%emt 0:00:50]} Ke7 {[%emt 0:02:14]} 33. Ra7 {[%emt 0:04:39]} Kd6 {[%emt 0:01:55]} 34. Ke2 {[%emt 0:01:16] [#]} c5 $1 {[%emt 0:06:24]} 35. Ra6+ {[%emt 0:05:17]} Kd5 {[%emt 0:00:17]} 36. Kd3 {[%emt 0:00:25]} Rb7 {[%emt 0:00:21]} 37. Ra5 {[%emt 0:00:39]} c4+ {[%emt 0:01:11]} (37... g5 $142 38. g4 f5) 38. Kc3 {[%emt 0:00:38]} Kc5 {[%emt 0:00:26]} 39. Ra4 {[%emt 0:00:53]} Rxb5 {[%emt 0:02:24]} 40. Rxc4+ {[%emt 0:01:18]} Kd6 {[%emt 0:30:05]} 41. Kd3 {[%emt 0:32:15]} e5 {[%emt 0:01:37]} 42. Ra4 {[%emt 0:01:30]} Rd5+ {[%emt 0:04:18]} 43. Ke3 {[%emt 0:00:00]} Ke6 {[%emt 0:00:00]} 44. f3 {[%emt 0:00:00]} f5 {[%emt 0:00:00]} 45. Ra7 {[%emt 0:00:00]} Rd7 {[%emt 0:00:00]} 46. Ra6+ {[%emt 0:00:00]} Kf7 {[%emt 0:00:00]} 47. Ra4 {[%emt 0:00:00]} h5 {[%emt 0:00:00]} 48. h4 {[%emt 0:00:00]} Rb7 {[%emt 0:00:00]} 49. Ra5 {[%emt 0:00:00]} Rb3+ {[%emt 0:00:00]} 50. Kf2 {[%emt 0:00:00]} Rb2+ {[%emt 0:00:00]} 51. Kg1 {[%emt 0:00:00]} e4 {[%emt 0:00:00]} 52. Ra7+ {[%emt 0:00:00]} Ke6 {[%emt 0:00:00]} 53. Ra6+ {[%emt 0:00:00]} Ke5 {[%emt 0:00:00]} 54. fxe4 {[%emt 0:00:00]} fxe4 {[%emt 0:00:00]} 55. Rxg6 {[%emt 0:00:00]} e3 {[%emt 0:00:00]} 56. Kf1 {[%emt 0:00:00]} Rf2+ {[%emt 0:00:00]} 57. Ke1 {[%emt 0:00:07]} Kf4 {[%emt 0:00:00]} 58. Rf6+ {[%emt 0:00:51]} Kg3 {[%emt 0:00:00]} 59. Rxf2 {[%emt 0:00:19]} exf2+ {[%emt 0:00:00]} 60. Kf1 $11 {[%emt 0:00:11]} 1/2-1/2

[Event "9. Korbacher Open 2017"]
[Site "Korbach"]
[Date "2017.10.19"]
[Round "1"]
[White "Alkayas, Shadi"]
[Black "Wachsmann, Dietmar"]
[Result "0-1"]
[ECO "B40"]
[WhiteElo "1975"]
[BlackElo "1930"]
[Annotator "NA RC"]
[PlyCount "82"]
[EventDate "2017.??.??"]
[EventType "swiss"]
[EventCountry "GER"]
[SourceTitle "playchess.com"]
[Source "ChessBase"]
[SourceQuality "1"]
[TimeControl "40/5400+30:1800+30"]

{[%evp 9,82,0,32767,0,-8,32767,-8,-27,-21,-64,-6,-20,-8,-11,-6,-43,-16,-45,-37,-24,0,0,-14,-25,11,-23,0,32767,32767,-190,0,8,14,0,0,0,77,65,78,18,15,11,281,49,57,58,49,52,117,0,32767,-16,0,-4,0,-671,-939,-691,-689,-808,-822,-1037,-1235,-1016,-1237,-1542,-1920,-1785,-5493,-2076,-11635,-5543,-8981,-5506,-29981]} 1. e4 {[%emt 0:00:00]} c5 {[%emt 0:00:06]} 2. Nf3 {[%emt 0:00:00]} e6 {[%emt 0:00:05]} 3. d4 {[%emt 0:00:27]} cxd4 {[%emt 0:00:06]} 4. Nxd4 {[%emt 0:00:56]} Nf6 {[%emt 0:00:07]} 5. f3 {[%emt 0:05:28]} d5 {[%emt 0:04:22] B40: Sicilian: 2...e6, Unusual lines} (5... e5 6. Nb3 d5 7. Bg5 Be6 8. exd5 Qxd5 9. Nc3 Bb4 10. Bd2 Qd8 11. Nb5 Nc6 12. Bxb4 Nxb4 13. c3 Nbd5 14. Nc5 Qb6 15. Nxe6 fxe6 16. Qe2 O-O-O 17. O-O-O a6 {0-1 (41) Tillyaev,U (2295)-Vokhidov,S (2377) Tashkent 2017}) 6. e5 {[%emt 0:02:14]} Nfd7 {[%emt 0:00:57]} 7. f4 {[%emt 0:03:49]} Nc6 {[%emt 0:05:54]} 8. Be3 {[%emt 0:10:06]} Qb6 {[%emt 0:08:24]} 9. b3 {[%emt 0:04:15]} Nxd4 {[%emt 0:09:58]} (9... Bc5 $17 10. c3 f6 11. exf6 Nxf6) 10. Bxd4 {[%emt 0:00:02]} Bc5 {[%emt 0:00:23]} 11. c3 $146 {[%emt 0:05:09]} O-O {[%emt 0:05:50]} 12. Bxc5 {[%emt 0:08:06]} Nxc5 {[%emt 0:05:37]} 13. Qd4 {[%emt 0:00:02]} Bd7 {[%emt 0:01:38]} 14. Nd2 {[%emt 0:09:06]} Bb5 {[%emt 0:07:50]} 15. Bxb5 {[%emt 0:17:23]} Qxb5 {[%emt 0:00:15]} 16. a4 {[%emt 0:01:36]} Qb6 {[%emt 0:07:49]} 17. b4 {[%emt 0:03:35]} Nd7 {[%emt 0:03:12]} 18. Nb3 {[%emt 0:00:28]} Rfc8 {[%emt 0:11:24]} 19. Kd2 $2 {[%emt 0:01:27] [#]} (19. Qxb6 $1 $11 {and White has nothing to worry.} axb6 20. Kd2) 19... Rc4 $2 {[%emt 0:03:17]} ({Black should try} 19... Qd8 $1 $19 20. Qd3 {[#]} a5 $1 {[%mdl 512]} 21. Nxa5 Rxa5 22. bxa5 Nc5) 20. Qxb6 {[%emt 0:02:38]} Nxb6 {[%emt 0:00:22]} 21. a5 {[%emt 0:00:42]} Nd7 {[%emt 0:00:51]} 22. Nd4 {[%emt 0:00:41]} f6 {[%emt 0:05:15]} (22... a6 $11 {keeps the balance.}) 23. Rhe1 {[%emt 0:00:01]} Kf7 {[%emt 0:01:06]} 24. Re3 {[%emt 0:03:56]} (24. a6 $16 b6 25. Rf1) 24... fxe5 {[%emt 0:02:55]} 25. fxe5 {[%emt 0:00:04]} Rf8 $2 {[%emt 0:01:53]} (25... a6 $1 $11) 26. Rf1+ $2 {[%emt 0:03:57]} (26. a6 $18 Rb8 27. Nb5) 26... Ke7 {[%emt 0:00:02]} 27. Rxf8 {[%emt 0:00:32]} Nxf8 {[%emt 0:00:01]} 28. Nb5 {[%emt 0:02:15]} Ng6 {[%emt 0:04:22]} (28... Rg4 $14) 29. g3 {[%emt 0:03:26]} ({White must play} 29. Nxa7 $16 Rg4 30. g3) 29... a6 {[%emt 0:01:22]} 30. Nd4 {[%emt 0:00:44]} Rc8 {[%emt 0:01:42]} 31. Nf3 {[%emt 0:01:51]} Rf8 {[%emt 0:01:05]} 32. Kd3 $2 {[%emt 0:00:36] [#]} (32. h4 $11) 32... Rxf3 $1 {[%emt 0:00:12]} 33. Rxf3 {[%emt 0:00:27]} Nxe5+ {[%emt 0:00:01]} 34. Ke3 {[%emt 0:00:01]} Nxf3 {[%emt 0:00:13]} 35. Kxf3 {[%emt 0:00:01]} e5 {[%emt 0:03:37]} 36. Ke3 {[%emt 0:00:55]} Ke6 {[%emt 0:02:07]} 37. g4 {[%emt 0:00:30]} g5 {[%emt 0:00:46]} 38. h3 {[%emt 0:00:01]} Kd6 {[%emt 0:01:21]} 39. Kd3 {[%emt 0:00:43]} Kc6 {[%emt 0:01:02]} 40. c4 {[%emt 0:01:43]} dxc4+ {[%emt 0:31:25]} 41. Kxc4 {[%emt 0:30:02]} h6 {[%emt 0:00:20]} 0-1